[Event "Guimaraes Open 2019"]
[Site "Guimaraes"]
[Date "2019.08.31"]
[Round "5.33"]
[White "Torrijos Garcia, Borja"]
[Black "Mendes, Bruno Daniel Durães "]
[Result "1-0"]
[ECO "A14"]
[WhiteElo "2153"]
[BlackElo "1442"]
[Annotator "NA"]
[PlyCount "87"]
[EventDate "2019.08.28"]
[EventType "swiss"]
[EventCountry "POR"]
[SourceTitle "playchess.com"]
[Source "ChessBase"]
[SourceQuality "1"]
[TimeControl "5400+30"]

1. c4 {[%emt 0:00:00]} e6 {[%emt 0:03:33]} 2. g3 {[%emt 0:00:00]} Nf6 {[%emt 0:00:57]} 3. Bg2 {[%emt 0:00:10]} d5 {[%emt 0:00:38]} 4. Nf3 {[%emt 0:00:44]} Be7 {[%emt 0:01:07]} 5. O-O {[%emt 0:00:25]} O-O {[%emt 0:00:51]} 6. b3 {[%emt 0:00:53]} b6 {[%emt 0:01:54]} 7. Bb2 {[%emt 0:00:33]} Bb7 {[%emt 0:00:32]} 8. Qc2 {[%emt 0:01:56]} h6 {[%emt 0:01:49]} 9. d4 {[%emt 0:03:52]} Nbd7 {[%emt 0:02:14]} 10. Nc3 {[%emt 0:01:38]} c6 {[%emt 0:03:06]} 11. e4 {[%emt 0:07:32]} dxe4 {[%emt 0:02:50]} 12. Nxe4 {[%emt 0:00:33]} Qc7 {[%emt 0:01:54]} 13. Nc3 {[%emt 0:13:01]} Rfe8 {[%emt 0:09:50]} 14. Rfe1 {[%emt 0:03:57]} Bf8 {[%emt 0:03:06]} 15. Re2 {[%emt 0:00:31]} a6 {[%emt 0:02:05]} 16. Rae1 {[%emt 0:07:56]} Rac8 {[%emt 0:02:04]} 17. h3 {[%emt 0:03:53]} Qb8 {[%emt 0:04:14]} 18. Nd2 {[%emt 0:10:55]} Qa8 {[%emt 0:02:36]} 19. Qd3 {[%emt 0:01:48]} Rcd8 {[%emt 0:05:32]} 20. a4 {[%emt 0:05:15]} Bb4 {[%emt 0:04:58]} 21. Na2 {[%emt 0:04:46]} Bxd2 {[%emt 0:10:10]} 22. Qxd2 {[%emt 0:00:16]} c5 {[%emt 0:01:56]} 23. Bxb7 {[%emt 0:00:11]} Qxb7 {[%emt 0:00:06]} 24. Qf4 {[%emt 0:05:49]} Qb8 {[%emt 0:03:57]} 25. Qe3 {[%emt 0:07:07]} Rc8 {[%emt 0:05:10]} 26. Nc1 {[%emt 0:04:00]} Red8 {[%emt 0:05:16]} 27. Nd3 {[%emt 0:01:11]} Ne8 {[%emt 0:04:32]} 28. Nf4 {[%emt 0:01:34]} Ndf6 {[%emt 0:01:16]} 29. Rd2 {[%emt 0:01:54]} Rd7 {[%emt 0:03:54]} 30. Red1 {[%emt 0:00:13]} Rcd8 {[%emt 0:00:30]} 31. Rd3 {[%emt 0:02:42]} Qc7 {[%emt 0:03:51]} 32. d5 {[%emt 0:04:59]} exd5 {[%emt 0:02:06]} 33. Nxd5 {[%emt 0:00:02]} Nxd5 {[%emt 0:02:13]} 34. Rxd5 {[%emt 0:00:02]} Rxd5 {[%emt 0:00:35]} 35. Rxd5 {[%emt 0:00:11]} Nd6 {[%emt 0:01:09]} 36. Be5 {[%emt 0:01:17]} f6 {[%emt 0:00:59]} 37. Bf4 {[%emt 0:00:13]} Kf7 {[%emt 0:01:14]} 38. Qd3 {[%emt 0:00:58]} Ke7 {[%emt 0:00:32]} 39. Qg6 {[%emt 0:01:09]} Kf8 {[%emt 0:01:32]} 40. Qd3 {[%emt 0:01:53]} Ke7 {[%emt 0:00:13]} 41. a5 {[%emt 0:00:53]} bxa5 {[%emt 0:01:04]} 42. Qh7 {[%emt 0:00:52]} Kf8 {[%emt 0:00:51]} 43. Bxh6 {[%emt 0:01:07]} gxh6 {[%emt 0:00:15]} 44. Qxc7 {[%emt 0:00:08]} 1-0

[Event "Guimaraes Open 2019"]
[Site "Guimaraes"]
[Date "2019.08.31"]
[Round "5.34"]
[White "Ribeiro, Orlando Camilo Duart"]
[Black "Fidalgo, Daniel Neves"]
[Result "0-1"]
[ECO "C11"]
[WhiteElo "1621"]
[BlackElo "2089"]
[Annotator "NA"]
[PlyCount "61"]
[EventDate "2019.08.28"]
[EventType "swiss"]
[EventCountry "POR"]
[SourceTitle "playchess.com"]
[Source "ChessBase"]
[SourceQuality "1"]
[TimeControl "5400+30"]

1. e4 {[%emt 0:17:15]} e6 {[%emt 0:00:00]} 2. d4 {[%emt 0:00:03]} d5 {[%emt 0:00:00]} 3. Nc3 {[%emt 0:00:04]} Nf6 {[%emt 0:00:00]} 4. e5 {[%emt 0:00:03]} Nfd7 {[%emt 0:00:00]} 5. f4 {[%emt 0:00:04]} c5 {[%emt 0:00:02]} 6. Nf3 {[%emt 0:00:04]} Nc6 {[%emt 0:00:06]} 7. Be3 {[%emt 0:00:05]} a6 {[%emt 0:00:06]} 8. Qd2 {[%emt 0:00:06]} cxd4 {[%emt 0:00:07]} 9. Nxd4 {[%emt 0:00:01]} Nxd4 {[%emt 0:00:10]} 10. Bxd4 {[%emt 0:00:07]} Bc5 {[%emt 0:00:04]} 11. O-O-O {[%emt 0:00:05]} O-O {[%emt 0:00:06]} 12. Qf2 {[%emt 0:00:43]} Qc7 {[%emt 0:00:07]} 13. Bd3 {[%emt 0:00:06]} Bxd4 {[%emt 0:00:05]} 14. Qxd4 {[%emt 0:00:07]} b5 {[%emt 0:00:06]} 15. Rhf1 {[%emt 0:10:00]} Rb8 {[%emt 0:04:18]} 16. Rf3 {[%emt 0:02:53]} Qc5 {[%emt 0:13:46]} 17. Rh3 {[%emt 0:05:46]} g6 {[%emt 0:00:21]} 18. Ne2 {[%emt 0:01:25]} a5 {[%emt 0:05:10]} 19. Qxc5 {[%emt 0:12:14]} Nxc5 {[%emt 0:00:09]} 20. Nd4 {[%emt 0:01:37]} Bd7 {[%emt 0:00:20]} 21. c3 {[%emt 0:04:06]} Rfc8 {[%emt 0:02:01]} 22. Bc2 {[%emt 0:01:42]} b4 {[%emt 0:09:35]} 23. Re1 {[%emt 0:12:07]} a4 {[%emt 0:03:37]} 24. Ne2 {[%emt 0:11:32]} Bb5 {[%emt 0:08:26]} 25. Ng1 {[%emt 0:03:55]} Bc4 {[%emt 0:01:12]} 26. Kb1 {[%emt 0:04:02]} b3 {[%emt 0:01:03]} 27. axb3 {[%emt 0:00:22]} axb3 {[%emt 0:00:02]} 28. Bd1 {[%emt 0:00:16]} Ra8 {[%emt 0:02:21]} 29. Be2 {[%emt 0:05:15]} Ra7 {[%emt 0:00:17]} 30. Kc1 {[%emt 0:01:25]} Ra1+ 31. Kd2 0-1

[Event "Guimaraes Open 2019"]
[Site "Guimaraes"]
[Date "2019.08.31"]
[Round "5.35"]
[White "Korning, Peter"]
[Black "Soares, Sara Joana De Moura "]
[Result "0-1"]
[ECO "A05"]
[WhiteElo "1972"]
[BlackElo "1597"]
[Annotator "NA"]
[PlyCount "90"]
[EventDate "2019.08.28"]
[EventType "swiss"]
[EventCountry "POR"]
[SourceTitle "playchess.com"]
[Source "ChessBase"]
[SourceQuality "1"]
[TimeControl "5400+30"]

1. Nf3 {[%emt 0:00:00]} Nf6 {[%emt 0:04:10]} 2. g3 {[%emt 0:00:00]} e6 {[%emt 0:00:52]} 3. Bg2 {[%emt 0:00:00]} d5 {[%emt 0:00:37]} 4. O-O {[%emt 0:00:03]} Be7 {[%emt 0:00:23]} 5. d3 {[%emt 0:02:10]} O-O {[%emt 0:02:09]} 6. Nbd2 {[%emt 0:00:08]} b6 {[%emt 0:01:19]} 7. e4 {[%emt 0:01:15]} dxe4 {[%emt 0:01:45]} 8. Ng5 {[%emt 0:01:30]} Bb7 {[%emt 0:03:30]} 9. Ndxe4 {[%emt 0:03:49]} Nxe4 {[%emt 0:05:58]} 10. Nxe4 {[%emt 0:00:21]} Kh8 {[%emt 0:07:11]} 11. Qh5 {[%emt 0:12:13]} Nc6 {[%emt 0:08:33]} 12. Ng5 {[%emt 0:05:05]} Bxg5 {[%emt 0:07:30]} 13. Bxg5 {[%emt 0:00:10]} f6 {[%emt 0:00:43]} 14. Be4 {[%emt 0:02:34]} g6 {[%emt 0:06:37]} 15. Bxg6 Qd7 {[%emt 0:00:23]} 16. Bd2 {[%emt 0:22:25]} Ne5 {[%emt 0:08:57]} 17. Be4 {[%emt 0:02:53]} Bxe4 {[%emt 0:01:08]} 18. dxe4 {[%emt 0:00:01]} Qxd2 {[%emt 0:00:22]} 19. Rad1 {[%emt 0:00:31]} Qg5 {[%emt 0:03:07]} 20. Qe2 {[%emt 0:00:58]} Qg7 {[%emt 0:00:29]} 21. f4 {[%emt 0:01:39]} Ng6 {[%emt 0:01:36]} 22. Kh1 {[%emt 0:05:41]} Rfd8 {[%emt 0:00:28]} 23. Rd3 {[%emt 0:01:59]} Qe7 {[%emt 0:01:57]} 24. Rfd1 {[%emt 0:01:40]} Rd6 {[%emt 0:03:16]} 25. h4 {[%emt 0:05:45]} Rad8 {[%emt 0:02:46]} 26. h5 {[%emt 0:00:22]} Rxd3 {[%emt 0:00:52]} 27. cxd3 {[%emt 0:01:17]} Nf8 {[%emt 0:00:17]} 28. g4 {[%emt 0:06:09]} e5 {[%emt 0:00:36]} 29. f5 {[%emt 0:01:42]} Rd4 {[%emt 0:01:16]} 30. Rg1 {[%emt 0:01:12]} Qd8 {[%emt 0:00:51]} 31. Rg3 {[%emt 0:00:22]} Nd7 {[%emt 0:01:28]} 32. b4 {[%emt 0:03:26]} Rxb4 {[%emt 0:01:34]} 33. g5 {[%emt 0:00:30]} fxg5 {[%emt 0:01:02]} 34. h6 {[%emt 0:02:10]} Nc5 {[%emt 0:01:47]} 35. Qh5 {[%emt 0:01:02]} Rb1+ {[%emt 0:03:08]} 36. Kh2 {[%emt 0:00:47]} Rb2+ {[%emt 0:00:33]} 37. Kh1 {[%emt 0:01:18]} Qf8 {[%emt 0:12:10]} 38. Rxg5 {[%emt 0:07:59]} Nxd3 {[%emt 0:01:46]} 39. Rg7 {[%emt 0:01:51]} Nf2+ {[%emt 0:01:08]} 40. Kg2 {[%emt 0:04:15]} Nxe4+ {[%emt 0:00:47]} 41. Kf3 {[%emt 0:00:45]} Nf6 {[%emt 0:00:31]} 42. Qg5 {[%emt 0:01:07]} e4+ {[%emt 0:02:03]} 43. Ke3 {[%emt 0:01:19]} Qa3+ {[%emt 0:00:29]} 44. Kf4 {[%emt 0:00:34]} Rf2+ {[%emt 0:00:10]} 45. Ke5 {[%emt 0:00:09]} Qd6# {[%emt 0:00:02] Kd4} 0-1

[Event "Guimaraes Open 2019"]
[Site "Guimaraes"]
[Date "2019.08.31"]
[Round "5.36"]
[White "Fonseca, Pedro Miguel Ramos D"]
[Black "Silva, Pedro Gil Ferreira D"]
[Result "0-1"]
[ECO "B10"]
[WhiteElo "1586"]
[BlackElo "1960"]
[Annotator "NA"]
[PlyCount "112"]
[EventDate "2019.08.28"]
[EventType "swiss"]
[EventCountry "POR"]
[SourceTitle "playchess.com"]
[Source "ChessBase"]
[SourceQuality "1"]
[TimeControl "5400+30"]

1. e4 {[%emt 0:00:00]} c6 {[%emt 0:00:20]} 2. Nc3 {[%emt 0:00:00]} d5 {[%emt 0:00:07]} 3. Nf3 {[%emt 0:00:00]} dxe4 {[%emt 0:00:16]} 4. Nxe4 {[%emt 0:00:06]} Nf6 {[%emt 0:00:04]} 5. Qe2 {[%emt 0:01:16]} Nxe4 {[%emt 0:03:41]} 6. Qxe4 {[%emt 0:00:03]} Nd7 {[%emt 0:01:53]} 7. Bc4 {[%emt 0:02:32]} e6 {[%emt 0:01:08]} 8. d4 {[%emt 0:03:11]} Nf6 {[%emt 0:01:13]} 9. Qe2 {[%emt 0:01:04]} Bd6 {[%emt 0:03:35]} 10. O-O {[%emt 0:04:58]} h6 {[%emt 0:02:05]} 11. Bd2 {[%emt 0:05:49]} O-O {[%emt 0:01:00]} 12. a3 {[%emt 0:02:04]} b6 {[%emt 0:07:46]} 13. Bb4 {[%emt 0:04:18]} Bb7 {[%emt 0:06:09]} 14. Rad1 {[%emt 0:09:42]} Bxb4 {[%emt 0:06:31]} 15. axb4 {[%emt 0:00:02]} Qc8 {[%emt 0:00:26]} 16. Ra1 {[%emt 0:06:19]} c5 {[%emt 0:03:57]} 17. bxc5 {[%emt 0:02:37]} bxc5 {[%emt 0:00:05]} 18. dxc5 {[%emt 0:01:52]} Qxc5 {[%emt 0:00:05]} 19. Bd3 {[%emt 0:08:08]} Rfd8 {[%emt 0:08:36]} 20. Nd2 {[%emt 0:04:14]} Rd4 {[%emt 0:17:21]} 21. Nb3 {[%emt 0:05:19]} Qd5 {[%emt 0:00:09]} 22. f3 {[%emt 0:00:36]} Rb4 {[%emt 0:03:51]} 23. Ra5 {[%emt 0:07:12]} Qc6 {[%emt 0:00:52]} 24. Ra3 {[%emt 0:06:44]} a5 {[%emt 0:02:11]} 25. Kh1 {[%emt 0:07:21]} a4 {[%emt 0:01:17]} 26. Nd2 {[%emt 0:00:12]} Rxb2 {[%emt 0:01:19]} 27. Nc4 {[%emt 0:00:46]} Rb4 {[%emt 0:00:25]} 28. c3 {[%emt 0:02:54]} Rb3 {[%emt 0:00:12]} 29. Rxb3 {[%emt 0:00:11]} axb3 {[%emt 0:00:03]} 30. Qb2 {[%emt 0:01:29]} Ba6 {[%emt 0:01:21]} 31. Qxb3 {[%emt 0:02:08]} Bxc4 {[%emt 0:00:25]} 32. Qxc4 {[%emt 0:01:00]} Qxc4 {[%emt 0:00:06]} 33. Bxc4 Rc8 {[%emt 0:00:07]} 34. Ba2 {[%emt 0:02:08]} Rxc3 {[%emt 0:00:04]} 35. Kg1 {[%emt 0:00:30]} g6 {[%emt 0:00:35]} 36. Rf2 {[%emt 0:02:13]} Nd7 {[%emt 0:00:47]} 37. Rd2 {[%emt 0:01:11]} Nc5 {[%emt 0:00:06]} 38. Kf2 {[%emt 0:02:59]} Kg7 {[%emt 0:00:38]} 39. Bb1 {[%emt 0:00:52]} Rb3 {[%emt 0:01:01]} 40. Bc2 {[%emt 0:01:09]} Rb2 {[%emt 0:00:13]} 41. Ke3 {[%emt 0:00:18]} Ra2 {[%emt 0:01:18]} 42. Bd1 {[%emt 0:00:29]} Ra3+ {[%emt 0:01:27]} 43. Kf2 {[%emt 0:00:24]} g5 {[%emt 0:01:20]} 44. Be2 {[%emt 0:00:42]} Rc3 {[%emt 0:00:27]} 45. Ra2 {[%emt 0:01:11]} Kf6 {[%emt 0:01:01]} 46. Rb2 {[%emt 0:00:52]} Ke5 {[%emt 0:01:03]} 47. Rb4 {[%emt 0:01:50]} Rc2 {[%emt 0:00:10]} 48. Rb5 {[%emt 0:01:43]} f5 {[%emt 0:00:34]} 49. g3 {[%emt 0:01:00]} Kd5 {[%emt 0:01:01]} 50. Rb8 {[%emt 0:00:49]} Ke5 {[%emt 0:02:02]} 51. Rb5 {[%emt 0:00:20]} Kf6 {[%emt 0:00:56]} 52. f4 {[%emt 0:00:40]} Na4 {[%emt 0:00:11]} 53. fxg5+ {[%emt 0:00:09]} hxg5 {[%emt 0:00:04]} 54. Rb3 {[%emt 0:00:11]} Nc3 {[%emt 0:00:05]} 55. Ke3 {[%emt 0:01:09]} Nxe2 {[%emt 0:00:04]} 56. Kd3 {[%emt 0:00:18]} Ke5 {Kd4+} 0-1

[Event "Guimaraes Open 2019"]
[Site "Guimaraes"]
[Date "2019.08.31"]
[Round "6.1"]
[White "Martinez Duany, Lelys Stanley"]
[Black "Grigoryan, Karen H."]
[Result "1/2-1/2"]
[ECO "A35"]
[WhiteElo "2526"]
[BlackElo "2562"]
[Annotator "ChessBase"]
[PlyCount "52"]
[EventDate "2019.08.28"]
[EventType "swiss"]
[EventCountry "POR"]
[SourceTitle "playchess.com"]
[Source "ChessBase"]
[SourceQuality "1"]
[TimeControl "5400+30"]

1. Nf3 {[%emt 0:00:00]} Nf6 {[%emt 0:01:15]} 2. c4 {[%emt 0:00:00]} c5 {[%emt 0:03:07]} 3. Nc3 {[%emt 0:00:32]} Nc6 {[%emt 0:00:09]} 4. g3 {[%emt 0:00:58]} d5 {[%emt 0:00:46]} 5. cxd5 {[%emt 0:00:30]} Nxd5 {[%emt 0:00:06]} 6. Bg2 {[%emt 0:00:32]} g6 {[%emt 0:01:03]} 7. d3 {[%emt 0:05:24]} Bg7 {[%emt 0:00:39]} 8. Bd2 {[%emt 0:00:18]} O-O {[%emt 0:00:13]} 9. O-O {[%emt 0:00:10]} e6 {[%emt 0:03:13]} 10. Qc1 {[%emt 0:00:47]} b6 {[%emt 0:01:07]} 11. Bh6 {[%emt 0:01:27]} Bb7 {[%emt 0:00:59]} 12. Bxg7 {[%emt 0:01:41]} Kxg7 {[%emt 0:00:06]} 13. a3 {[%emt 0:11:57]} Nd4 {[%emt 0:07:32]} 14. Nxd4 {[%emt 0:01:12]} cxd4 {[%emt 0:00:07]} 15. Nxd5 {[%emt 0:01:52]} Bxd5 {[%emt 0:00:07]} 16. Bxd5 {[%emt 0:04:19]} Qxd5 {[%emt 0:00:06]} 17. Qd2 {[%emt 0:00:09]} Rfc8 {[%emt 0:00:55]} 18. Rfc1 {[%emt 0:00:25]} a5 {[%emt 0:00:08]} 19. Rxc8 {[%emt 0:00:10]} Rxc8 {[%emt 0:00:03]} 20. Rc1 {[%emt 0:00:11]} Rxc1+ {[%emt 0:00:06]} 21. Qxc1 {[%emt 0:00:09]} Qb3 {[%emt 0:01:43]} 22. Kg2 {[%emt 0:00:22]} Qd5+ {[%emt 0:00:04]} 23. Kg1 {[%emt 0:00:31]} Qb3 {[%emt 0:00:05]} 24. Kg2 {[%emt 0:00:20]} Qd5+ {[%emt 0:00:04]} 25. Kg1 {[%emt 0:00:09]} Qb3 {[%emt 0:00:09]} 26. Kg2 {[%emt 0:00:11]} Qd5+ {[%emt 0:00:04]} 1/2-1/2

[Event "Guimaraes Open 2019"]
[Site "Guimaraes"]
[Date "2019.09.01"]
[Round "6.29"]
[White "Gama, Joao Goncalo Cerejei"]
[Black "Rodrigues, Afonso"]
[Result "0-1"]
[ECO "C10"]
[WhiteElo "1642"]
[BlackElo "2134"]
[Annotator "RC"]
[PlyCount "146"]
[EventDate "2019.08.28"]
[EventType "swiss"]
[EventCountry "POR"]
[SourceTitle "playchess.com"]
[Source "ChessBase"]
[SourceQuality "1"]
[TimeControl "5400+30"]

1. e4 {[%emt 0:00:00]} e6 {[%emt 0:00:00]} 2. d4 {[%emt 0:00:00]} d5 {[%emt 0:00:00]} 3. Nd2 {[%emt 0:00:00]} dxe4 {[%emt 0:00:00]} 4. Nxe4 {[%emt 0:00:10]} Bd7 {[%emt 0:00:00]} 5. Nf3 {[%emt 0:01:56]} Bc6 {[%emt 0:00:00]} 6. Bd3 {[%emt 0:00:38]} Nd7 {[%emt 0:00:11]} 7. c3 {[%emt 0:01:47]} Be7 {[%emt 0:08:05]} 8. Bf4 {[%emt 0:02:18]} Ngf6 {[%emt 0:00:52]} 9. Nxf6+ {[%emt 0:01:27]} Bxf6 {[%emt 0:02:39]} 10. O-O {[%emt 0:01:02]} Bxf3 {[%emt 0:12:55]} 11. Qxf3 {[%emt 0:01:27]} c6 {[%emt 0:00:37]} 12. Rfe1 {[%emt 0:05:48]} O-O {[%emt 0:16:15]} 13. Rad1 {[%emt 0:10:42]} Qb6 {[%emt 0:11:51]} 14. Qe2 {[%emt 0:02:18]} Rfd8 {[%emt 0:02:26]} 15. Qc2 {[%emt 0:02:09]} Nf8 {[%emt 0:01:47]} 16. Bg3 {[%emt 0:01:18]} Rac8 {[%emt 0:06:57]} 17. b4 {[%emt 0:03:15]} a5 {[%emt 0:04:28]} 18. a3 {[%emt 0:00:34]} axb4 {[%emt 0:00:27]} 19. axb4 {[%emt 0:00:06]} Ra8 {[%emt 0:00:46]} 20. Ra1 {[%emt 0:00:19]} Ra7 {[%emt 0:06:01]} 21. Qb2 {[%emt 0:06:35]} Rda8 {[%emt 0:01:17]} 22. Bd6 {[%emt 0:02:21]} Nd7 {[%emt 0:01:41]} 23. h3 {[%emt 0:01:41]} g6 {[%emt 0:00:46]} 24. Bc4 {[%emt 0:05:56]} Qd8 {[%emt 0:00:43]} 25. Bb3 {[%emt 0:02:24]} Ra6 {[%emt 0:03:58]} 26. Rxa6 {[%emt 0:01:16]} Rxa6 {[%emt 0:00:05]} 27. Ra1 {[%emt 0:00:23]} Rxa1+ {[%emt 0:03:39]} 28. Qxa1 {[%emt 0:00:06]} Nb6 {[%emt 0:00:20]} 29. Qa5 {[%emt 0:08:48]} Nd5 {[%emt 0:02:00]} 30. Qxd8+ {[%emt 0:00:06]} Bxd8 {[%emt 0:00:05]} 31. c4 {[%emt 0:00:23]} Nc3 {[%emt 0:00:39]} 32. Kf1 Ne4 {[%emt 0:01:26]} 33. Bf4 {[%emt 0:03:45]} Bf6 {[%emt 0:00:09]} 34. f3 {[%emt 0:04:48]} Nc3 {[%emt 0:02:07]} 35. Be3 {[%emt 0:00:49]} Be7 {[%emt 0:00:37]} 36. Bd2 {[%emt 0:03:32]} Bxb4 {[%emt 0:00:05]} 37. Bxc3 {[%emt 0:00:06]} Bxc3 {[%emt 0:00:04]} 38. d5 {[%emt 0:00:16]} cxd5 {[%emt 0:04:52]} 39. cxd5 {[%emt 0:00:04]} e5 {[%emt 0:00:05]} 40. Bc4 {[%emt 0:05:20]} Bb4 {[%emt 0:00:11]} 41. Ke2 {[%emt 0:00:24]} Kf8 {[%emt 0:00:08]} 42. g4 {[%emt 0:03:33]} Ke7 {[%emt 0:00:13]} 43. Kd3 {[%emt 0:03:42]} Kd6 {[%emt 0:00:11]} 44. Ke4 {[%emt 0:04:02]} Bd2 {[%emt 0:00:16]} 45. Bb3 {[%emt 0:01:56]} b5 {[%emt 0:00:21]} 46. Ba2 {[%emt 0:01:17]} f6 {[%emt 0:00:06]} 47. Kd3 {[%emt 0:01:31]} Ba5 {[%emt 0:00:43]} 48. Bb3 {[%emt 0:01:30]} Kc5 {[%emt 0:00:14]} 49. Ke4 {[%emt 0:01:12]} Bc7 {[%emt 0:00:13]} 50. Kd3 {[%emt 0:01:40]} Kb4 {[%emt 0:00:16]} 51. Bd1 {[%emt 0:01:49]} Bd6 {[%emt 0:00:11]} 52. Bc2 Ka3 {[%emt 0:01:05]} 53. Bb1 {[%emt 0:04:01]} Kb2 {[%emt 0:00:45]} 54. Bc2 {[%emt 0:00:14]} Bc5 {[%emt 0:00:07]} 55. Bd1 {[%emt 0:01:18]} Bd6 {[%emt 0:03:41]} 56. Kd2 {[%emt 0:00:40]} b4 {[%emt 0:00:31]} 57. Kd3 {[%emt 0:02:03]} h5 {[%emt 0:02:25]} 58. Kc4 {[%emt 0:00:41]} hxg4 {[%emt 0:00:15]} 59. hxg4 {[%emt 0:00:03]} Kc1 {[%emt 0:00:24]} 60. Ba4 {[%emt 0:00:27]} Kd2 {[%emt 0:00:26]} 61. Bb3 {[%emt 0:00:57]} Ke2 {[%emt 0:00:39]} 62. Bc2 {[%emt 0:00:25]} Kxf3 {[%emt 0:00:12]} 63. Bxg6 {[%emt 0:00:08]} Kxg4 {[%emt 0:00:10]} 64. Bc2 {[%emt 0:00:17]} f5 {[%emt 0:00:15]} 65. Bd1+ {[%emt 0:00:49]} Kg3 {[%emt 0:00:12]} 66. Kd3 {[%emt 0:00:25]} Kf2 {[%emt 0:01:24]} 67. Kd2 {[%emt 0:00:12]} e4 {[%emt 0:00:11]} 68. Bh5 {[%emt 0:00:47]} f4 {[%emt 0:02:24]} 69. Kd1 {[%emt 0:00:48]} f3 {[%emt 0:00:26]} 70. Be8 {[%emt 0:00:21]} e3 {[%emt 0:00:14]} 71. Bb5 {[%emt 0:00:04]} e2+ {[%emt 0:00:13]} 72. Bxe2 {[%emt 0:00:03]} fxe2+ {[%emt 0:00:04]} 73. Kc2 {[%emt 0:00:09]} e1=Q {[%emt 0:00:23]} 0-1

[Event "Guimaraes Open 2019"]
[Site "Guimaraes"]
[Date "2019.08.31"]
[Round "6.32"]
[White "Fidalgo, Daniel Neves"]
[Black "Basilio, Rodrigo"]
[Result "1/2-1/2"]
[ECO "A15"]
[WhiteElo "2089"]
[BlackElo "1782"]
[Annotator "NA RC"]
[PlyCount "70"]
[EventDate "2019.08.28"]
[EventType "swiss"]
[EventCountry "POR"]
[SourceTitle "playchess.com"]
[Source "ChessBase"]
[SourceQuality "1"]
[TimeControl "5400+30"]

1. c4 {[%emt 0:00:00]} Nf6 {[%emt 0:00:01]} 2. g3 {[%emt 0:00:00]} g6 {[%emt 0:00:12]} 3. Bg2 {[%emt 0:00:01]} Bg7 {[%emt 0:00:08]} 4. Nc3 {[%emt 0:00:12]} O-O {[%emt 0:00:31]} 5. e4 {[%emt 0:01:29]} d6 {[%emt 0:00:23]} 6. Nge2 {[%emt 0:00:09]} e5 {[%emt 0:00:30]} 7. O-O {[%emt 0:00:18]} Be6 {[%emt 0:01:21]} 8. d3 {[%emt 0:03:39]} c6 {[%emt 0:00:21]} 9. h3 {[%emt 0:04:15]} Nfd7 {[%emt 0:01:19]} 10. Be3 {[%emt 0:01:33]} a5 {[%emt 0:02:02]} 11. b3 {[%emt 0:00:31]} Qc7 {[%emt 0:00:45]} 12. d4 {[%emt 0:01:18]} exd4 {[%emt 0:01:53]} 13. Nxd4 {[%emt 0:02:17]} Nc5 {[%emt 0:00:23]} 14. Qd2 {[%emt 0:07:22]} Nba6 {[%emt 0:02:08]} 15. Rad1 {[%emt 0:00:38]} Rad8 {[%emt 0:01:38]} 16. f4 f5 {[%emt 0:00:58]} 17. Rfe1 {[%emt 0:11:21]} Bc8 {[%emt 0:02:44]} 18. exf5 {[%emt 0:06:41]} gxf5 {[%emt 0:04:11]} 19. Qc2 {[%emt 0:00:42]} a4 {[%emt 0:11:18]} 20. Qb1 {[%emt 0:08:14]} axb3 {[%emt 0:01:03]} 21. axb3 {[%emt 0:00:02]} Qa5 {[%emt 0:02:31]} 22. Na2 {[%emt 0:01:46]} Nb4 {[%emt 0:00:42]} 23. Nxb4 {[%emt 0:00:12]} Qxb4 {[%emt 0:00:07]} 24. Bf2 {[%emt 0:01:40]} Bxd4 {[%emt 0:04:16]} 25. Rxd4 {[%emt 0:18:14]} Qxb3 {[%emt 0:00:39]} 26. Rxd6 {[%emt 0:04:56]} Rxd6 {[%emt 0:01:59]} 27. Bxc5 {[%emt 0:00:07]} Qxc4 {[%emt 0:02:45]} 28. Qb6 {[%emt 0:04:27]} Re6 {[%emt 0:06:40]} 29. Rxe6 {[%emt 0:01:07]} Qxe6 {[%emt 0:00:20]} 30. Bxf8 {[%emt 0:00:13]} Kxf8 {[%emt 0:00:11]} 31. Qd8+ {[%emt 0:01:54]} Kg7 {[%emt 0:02:04]} 32. Qg5+ {[%emt 0:01:53]} Kf7 {[%emt 0:00:42]} 33. Bf3 Qe1+ {[%emt 0:01:09]} 34. Kg2 {[%emt 0:00:38]} Qd2+ {[%emt 0:00:15]} 35. Kg1 {[%emt 0:00:06]} Qe1+ $11 {[%emt 0:00:41]} (35... Qd6 $17 36. Qh5+ Kg7) 1/2-1/2

[Event "Guimaraes Open 2019"]
[Site "Guimaraes"]
[Date "2019.08.31"]
[Round "6.33"]
[White "Sanleon Pravisano, Nieves"]
[Black "Silva, Daniel Frederico V"]
[Result "1/2-1/2"]
[ECO "D51"]
[WhiteElo "1995"]
[BlackElo "1655"]
[Annotator "NA RC"]
[PlyCount "69"]
[EventDate "2019.08.28"]
[EventType "swiss"]
[EventCountry "POR"]
[SourceTitle "playchess.com"]
[Source "ChessBase"]
[SourceQuality "1"]
[TimeControl "5400+30"]

1. d4 {[%emt 0:00:00]} d5 {[%emt 0:01:23]} 2. c4 {[%emt 0:00:00]} e6 {[%emt 0:01:07]} 3. Nc3 {[%emt 0:00:10]} Nf6 {[%emt 0:02:15]} 4. Bg5 {[%emt 0:00:07]} Nbd7 {[%emt 0:01:15]} 5. Nf3 {[%emt 0:00:05]} Be7 {[%emt 0:02:28]} 6. e3 {[%emt 0:01:03]} c6 {[%emt 0:01:34]} 7. Bd3 {[%emt 0:00:39]} h6 {[%emt 0:03:48]} 8. Bh4 {[%emt 0:00:30]} O-O {[%emt 0:00:29]} 9. O-O {[%emt 0:00:25]} b6 {[%emt 0:02:16]} 10. Bg3 {[%emt 0:05:33] D60: Queen's Gambit Declined: Classical: Unusual White 7th moves} (10. Qe2 Bb7 11. Rad1 Re8 12. Rfe1 a6 13. Ne5 c5 14. Nxd7 Nxd7 15. Bxe7 Qxe7 16. cxd5 exd5 17. Bf5 Nf6 {1-0 (72) Morozevich,A (2763)-Kovalenko,I (2587) Jurmala 2012}) 10... Bb7 {[%emt 0:02:06]} 11. Ne5 $146 {[%emt 0:02:47]} ({Predecessor:} 11. Qe2 dxc4 12. Bxc4 b5 13. Bd3 b4 14. Na4 Qa5 15. b3 c5 16. Rac1 Rac8 17. dxc5 Nxc5 18. Nxc5 Rxc5 {½-½ (58) Gupta,A (2551)-Levin,F (2564) Benasque 2008}) 11... Nxe5 {[%emt 0:03:47]} 12. dxe5 {[%emt 0:00:42]} Nd7 {[%emt 0:00:19]} 13. cxd5 {[%emt 0:00:18]} exd5 {[%emt 0:02:46]} 14. f4 {[%emt 0:04:39]} Nc5 {[%emt 0:07:18]} 15. Bb1 {[%emt 0:07:36]} Ba6 {[%emt 0:03:25]} 16. Rf2 {[%emt 0:06:10]} f5 {[%emt 0:04:40]} 17. exf6 {[%emt 0:07:16]} Rxf6 {[%emt 0:01:39]} 18. b4 {[%emt 0:05:13]} Nb7 {[%emt 0:04:08]} 19. b5 {[%emt 0:13:44]} Bxb5 {[%emt 0:01:23]} 20. Nxb5 {[%emt 0:00:07]} cxb5 {[%emt 0:00:23]} 21. Qd3 {[%emt 0:00:18]} Re6 {[%emt 0:09:26]} 22. h4 {[%emt 0:08:54]} Nc5 {[%emt 0:07:16]} 23. Qh7+ {[%emt 0:01:03]} Kf8 {[%emt 0:02:40]} 24. Bg6 {[%emt 0:06:59]} Bf6 {[%emt 0:01:35]} 25. Rd1 $11 {[%emt 0:04:25]} Ne4 {[%emt 0:05:23]} 26. Bxe4 {[%emt 0:00:20]} Rxe4 {[%emt 0:00:09]} 27. Rfd2 {[%emt 0:00:22]} Rxe3 {[%emt 0:04:44]} 28. Rxd5 {[%emt 0:00:21]} Qe8 {[%emt 0:02:02]} 29. Bf2 {[%emt 0:04:14]} Re7 {[%emt 0:05:11]} 30. g4 {[%emt 0:01:58]} Rc8 {[%emt 0:03:07]} 31. g5 {[%emt 0:01:00]} g6 {[%emt 0:00:29]} 32. Qxh6+ {[%emt 0:01:21]} Bg7 33. Qh7 Bc3 34. Qh6+ Kg8 35. h5 {Kf8} 1/2-1/2